[Event "Titled Tuesday Blitz October 25 Late 2022"]
[White "Javakhadze, Zurab"]
[Black "Bortnyk, Olexandr"]
[WhiteFideId "13603647"]
[BlackFideId "14120828"]
[WhiteElo "2381"]
[BlackElo "2723"]
[Result "1-0"]
[Round "07"]
[TimeControl "180+1"]
[Date "2022.10.26"]
[WhiteClock "0:00:19"]
[BlackClock "0:00:30"]

1. Nf3 {[%clk 0:03:00]}  Nf6 {[%clk 0:02:51]} 2. c4 {[%clk 0:02:57]}  b6 {[%clk 0:02:51]} 3. Nc3 {[%clk 0:02:54]}  Bb7 {[%clk 0:02:51]} 4. d4 {[%clk 0:02:54]}  g6 {[%clk 0:02:50]} 5. g3 {[%clk 0:02:50]}  Bg7 {[%clk 0:02:51]} 6. Bg2 {[%clk 0:02:50]}  O-O {[%clk 0:02:51]} 7. O-O {[%clk 0:02:50]}  Ne4 {[%clk 0:02:52]} 8. Bd2 {[%clk 0:02:42]}  e6 {[%clk 0:02:50]} 9. Rc1 {[%clk 0:02:41]}  Nxd2 {[%clk 0:02:50]} 10. Qxd2 {[%clk 0:02:41]}  d6 {[%clk 0:02:51]} 11. e4 {[%clk 0:02:41]}  Nd7 {[%clk 0:02:50]} 12. h4 {[%clk 0:02:32]}  h5 {[%clk 0:02:49]} 13. d5 {[%clk 0:02:29]}  e5 {[%clk 0:02:48]} 14. b4 {[%clk 0:02:25]}  a5 {[%clk 0:02:48]} 15. a3 {[%clk 0:02:25]}  Qe7 {[%clk 0:02:24]} 16. Nb5 {[%clk 0:02:24]}  Nf6 {[%clk 0:02:22]} 17. Rfe1 {[%clk 0:02:03]}  Bc8 {[%clk 0:02:17]} 18. c5 {[%clk 0:01:59]}  axb4 {[%clk 0:02:16]} 19. axb4 {[%clk 0:01:59]}  bxc5 {[%clk 0:02:15]} 20. bxc5 {[%clk 0:01:59]}  dxc5 {[%clk 0:01:57]} 21. Qc3 {[%clk 0:01:56]}  Ng4 {[%clk 0:01:56]} 22. Qxc5 {[%clk 0:01:34]}  Qxc5 {[%clk 0:01:57]} 23. Rxc5 {[%clk 0:01:34]}  Ra2 {[%clk 0:01:58]} 24. Rf1 {[%clk 0:01:19]}  Ba6 {[%clk 0:01:57]} 25. Nc3 {[%clk 0:01:06]}  Rc2 {[%clk 0:01:52]} 26. Ra1 {[%clk 0:01:04]}  Bd3 {[%clk 0:01:46]} 27. Ne1 {[%clk 0:01:03]}  Rd2 {[%clk 0:01:40]} 28. Rd1 {[%clk 0:00:32]}  Rxd1 {[%clk 0:01:30]} 29. Nxd1 {[%clk 0:00:33]}  Ba6 {[%clk 0:01:29]} 30. f3 {[%clk 0:00:28]}  Nf6 {[%clk 0:01:26]} 31. Rxc7 {[%clk 0:00:28]}  Rb8 {[%clk 0:01:26]} 32. Nc3 {[%clk 0:00:26]}  Rb2 {[%clk 0:01:24]} 33. Rc6 {[%clk 0:00:24]}  Bb7 {[%clk 0:01:17]} 34. Rc5 {[%clk 0:00:23]}  Ba6 {[%clk 0:01:12]} 35. Ra5 {[%clk 0:00:20]}  Bc4 {[%clk 0:01:11]} 36. Ra4 {[%clk 0:00:19]}  Bb5 {[%clk 0:01:08]} 37. Ra8+ {[%clk 0:00:17]}  Bf8 {[%clk 0:01:06]} 38. Rb8 {[%clk 0:00:17]}  Rb3 {[%clk 0:01:03]} 39. Nxb5 {[%clk 0:00:15]}  Kg7 {[%clk 0:01:03]} 40. Nc2 {[%clk 0:00:13]}  Bc5+ {[%clk 0:01:03]} 41. Kh2 {[%clk 0:00:12]}  Rb2 {[%clk 0:01:04]} 42. Ne1 {[%clk 0:00:12]}  Rb3 {[%clk 0:00:49]} 43. Rb7 {[%clk 0:00:12]}  Re3 {[%clk 0:00:32]} 44. Rc7 {[%clk 0:00:10]}  Bb6 {[%clk 0:00:25]} 45. Rc6 {[%clk 0:00:10]}  Ba5 {[%clk 0:00:22]} 46. Nc2 {[%clk 0:00:11]}  Re2 {[%clk 0:00:23]} 47. d6 {[%clk 0:00:10]}  Rd2 {[%clk 0:00:23]} 48. Ne3 {[%clk 0:00:10]}  Bb4 {[%clk 0:00:23]} 49. Nc4 {[%clk 0:00:10]}  Rd1 {[%clk 0:00:22]} 50. Nc7 {[%clk 0:00:08]}  Nd7 {[%clk 0:00:21]} 51. Nd5 {[%clk 0:00:08]}  Bc5 {[%clk 0:00:22]} 52. Rc7 {[%clk 0:00:08]}  Bg1+ {[%clk 0:00:22]} 53. Kh3 {[%clk 0:00:09]}  Nc5 {[%clk 0:00:23]} 54. d7 {[%clk 0:00:08]}  Ne6 {[%clk 0:00:23]} 55. Rc8 {[%clk 0:00:06]}  g5 {[%clk 0:00:21]} 56. d8=Q {[%clk 0:00:05]}  Nxd8 {[%clk 0:00:19]} 57. Rxd8 {[%clk 0:00:05]}  gxh4 {[%clk 0:00:20]} 58. gxh4 {[%clk 0:00:05]}  Bf2 {[%clk 0:00:21]} 59. Nd6 {[%clk 0:00:05]}  f5 {[%clk 0:00:17]} 60. Nxf5+ {[%clk 0:00:05]}  Kf7 {[%clk 0:00:18]} 61. Rd7+ {[%clk 0:00:05]}  Kf8 {[%clk 0:00:18]} 62. Nf6 {[%clk 0:00:04]}  Rxd7 {[%clk 0:00:16]} 63. Nxd7+ {[%clk 0:00:04]}  Kf7 {[%clk 0:00:16]} 64. Nxe5+ {[%clk 0:00:05]}  Kf6 {[%clk 0:00:17]} 65. Nd3 {[%clk 0:00:05]}  Ba7 {[%clk 0:00:17]} 66. f4 {[%clk 0:00:06]}  Bb8 {[%clk 0:00:17]} 67. Ng3 {[%clk 0:00:06]}  Kg6 {[%clk 0:00:18]} 68. e5 {[%clk 0:00:06]}  Kh6 {[%clk 0:00:18]} 69. Be4 {[%clk 0:00:07]}  Bc7 {[%clk 0:00:19]} 70. Nf5+ {[%clk 0:00:08]}  Kg6 {[%clk 0:00:19]} 71. Nd4+ {[%clk 0:00:08]}  Kh6 {[%clk 0:00:20]} 72. Ne6 {[%clk 0:00:08]}  Bxe5 {[%clk 0:00:20]} 73. f5 {[%clk 0:00:06]}  Bf6 {[%clk 0:00:20]} 74. Nef4 {[%clk 0:00:05]}  Be7 {[%clk 0:00:20]} 75. Nd5 {[%clk 0:00:05]}  Bd8 {[%clk 0:00:19]} 76. Bf3 {[%clk 0:00:06]}  Be7 {[%clk 0:00:19]} 77. N5f4 {[%clk 0:00:06]}  Bd8 {[%clk 0:00:18]} 78. Nxh5 {[%clk 0:00:07]}  Be7 {[%clk 0:00:18]} 79. Ng3 {[%clk 0:00:08]}  Bd8 {[%clk 0:00:19]} 80. Kg4 {[%clk 0:00:08]}  Kg7 {[%clk 0:00:20]} 81. Nf4 {[%clk 0:00:09]}  Kf6 {[%clk 0:00:21]} 82. Ne4+ {[%clk 0:00:09]}  Kf7 {[%clk 0:00:21]} 83. Ne6 {[%clk 0:00:10]}  Be7 {[%clk 0:00:21]} 84. N6g5+ {[%clk 0:00:10]}  Kg8 {[%clk 0:00:22]} 85. f6 {[%clk 0:00:11]}  Bf8 {[%clk 0:00:21]} 86. Kf5 {[%clk 0:00:12]}  Kh8 {[%clk 0:00:22]} 87. Kg6 {[%clk 0:00:12]}  Ba3 {[%clk 0:00:21]} 88. Ng3 {[%clk 0:00:13]}  Kg8 {[%clk 0:00:22]} 89. Nf5 {[%clk 0:00:13]}  Kf8 {[%clk 0:00:21]} 90. Ne6+ {[%clk 0:00:12]}  Ke8 {[%clk 0:00:22]} 91. f7+ {[%clk 0:00:13]}  Kd7 {[%clk 0:00:23]} 92. f8=Q {[%clk 0:00:13]}  Bxf8 {[%clk 0:00:23]} 93. Nxf8+ {[%clk 0:00:14]}  Kc7 {[%clk 0:00:23]} 94. Kg7 {[%clk 0:00:15]}  Kd8 {[%clk 0:00:23]} 95. h5 {[%clk 0:00:16]}  Ke8 {[%clk 0:00:24]} 96. h6 {[%clk 0:00:16]}  Kd8 {[%clk 0:00:25]} 97. h7 {[%clk 0:00:17]}  Ke8 {[%clk 0:00:26]} 98. h8=Q {[%clk 0:00:18]}  Kd8 {[%clk 0:00:27]} 99. Qg8 {[%clk 0:00:18]}  Kc7 {[%clk 0:00:27]} 100. Qf7+ {[%clk 0:00:19]}  Kb6 {[%clk 0:00:28]} 101. Qb7+ {[%clk 0:00:19]}  Kc5 {[%clk 0:00:29]} 102. Qc6+ {[%clk 0:00:20]}  Kb4 {[%clk 0:00:29]} 103. Nd4 {[%clk 0:00:20]}  Ka3 {[%clk 0:00:30]} 104. Qc3+ {[%clk 0:00:19]} 1-0


[Site "https://www.chess.com"]

[Event "Titled Tuesday Blitz October 25 Late 2022"]
[White "Jensen, Matthew R"]
[Black "Dzierzak, Radoslaw"]
[WhiteFideId "2018110"]
[BlackFideId "1161407"]
[WhiteElo "2300"]
[BlackElo "2111"]
[Result "1-0"]
[Round "07"]
[TimeControl "180+1"]
[Date "2022.10.26"]
[WhiteClock "0:00:17"]
[BlackClock "0:00:07"]

1. d4 {[%clk 0:03:00]}  Nf6 {[%clk 0:02:59]} 2. c4 {[%clk 0:03:01]}  e6 {[%clk 0:03:00]} 3. g3 {[%clk 0:03:00]}  Bb4+ {[%clk 0:03:00]} 4. Nd2 {[%clk 0:03:00]}  O-O {[%clk 0:02:54]} 5. Bg2 {[%clk 0:02:59]}  d5 {[%clk 0:02:54]} 6. a3 {[%clk 0:02:59]}  Be7 {[%clk 0:02:52]} 7. Ngf3 {[%clk 0:02:58]}  b6 {[%clk 0:02:42]} 8. cxd5 {[%clk 0:02:55]}  exd5 {[%clk 0:02:40]} 9. O-O {[%clk 0:02:49]}  c5 {[%clk 0:02:35]} 10. b3 {[%clk 0:02:44]}  Nc6 {[%clk 0:02:33]} 11. Bb2 {[%clk 0:02:44]}  Be6 {[%clk 0:02:20]} 12. e3 {[%clk 0:02:38]}  Rc8 {[%clk 0:02:14]} 13. Rc1 {[%clk 0:02:37]}  Qd7 {[%clk 0:02:11]} 14. Qe2 {[%clk 0:02:35]}  Ne4 {[%clk 0:01:37]} 15. dxc5 {[%clk 0:01:51]}  Nxd2 {[%clk 0:01:32]} 16. Qxd2 {[%clk 0:01:47]}  bxc5 {[%clk 0:01:31]} 17. Rfd1 {[%clk 0:01:43]}  Rfd8 {[%clk 0:01:30]} 18. Ne5 {[%clk 0:01:35]}  Nxe5 {[%clk 0:01:29]} 19. Bxe5 {[%clk 0:01:36]}  Qb5 {[%clk 0:01:21]} 20. Qb2 {[%clk 0:01:30]}  f6 {[%clk 0:01:21]} 21. Bc3 {[%clk 0:01:17]}  d4 {[%clk 0:01:15]} 22. exd4 {[%clk 0:01:14]}  Bxb3 {[%clk 0:01:13]} 23. dxc5 {[%clk 0:00:54]}  Bxc5 {[%clk 0:00:53]} 24. Rxd8+ {[%clk 0:00:25]}  Rxd8 {[%clk 0:00:49]} 25. Bxf6 {[%clk 0:00:25]}  gxf6 {[%clk 0:00:38]} 26. Qxf6 {[%clk 0:00:25]}  Bxf2+ {[%clk 0:00:14]} 27. Qxf2 {[%clk 0:00:24]}  Qb6 {[%clk 0:00:14]} 28. Qxb6 {[%clk 0:00:21]}  axb6 {[%clk 0:00:15]} 29. Rb1 {[%clk 0:00:21]}  Rd3 {[%clk 0:00:12]} 30. Rxb3 {[%clk 0:00:21]}  Rd1+ {[%clk 0:00:11]} 31. Bf1 {[%clk 0:00:20]}  Rd6 {[%clk 0:00:10]} 32. a4 {[%clk 0:00:20]}  Kg7 {[%clk 0:00:10]} 33. Bb5 {[%clk 0:00:20]}  Kf6 {[%clk 0:00:09]} 34. Rc3 {[%clk 0:00:21]}  Ke5 {[%clk 0:00:10]} 35. Kg2 {[%clk 0:00:21]}  h5 {[%clk 0:00:07]} 36. Rc6 {[%clk 0:00:20]}  Rd2+ {[%clk 0:00:05]} 37. Kh3 {[%clk 0:00:21]}  h4 {[%clk 0:00:03]} 38. Rxb6 {[%clk 0:00:21]}  hxg3 {[%clk 0:00:03]} 39. hxg3 {[%clk 0:00:22]}  Rd4 {[%clk 0:00:02]} 40. Rc6 {[%clk 0:00:21]}  Kf5 {[%clk 0:00:02]} 41. Rc5+ {[%clk 0:00:21]}  Kf6 {[%clk 0:00:02]} 42. g4 {[%clk 0:00:21]}  Rb4 {[%clk 0:00:02]} 43. Kh4 {[%clk 0:00:22]}  Rd4 {[%clk 0:00:02]} 44. Kh5 {[%clk 0:00:22]}  Kg7 {[%clk 0:00:02]} 45. g5 {[%clk 0:00:22]}  Kf7 {[%clk 0:00:02]} 46. Rc7+ {[%clk 0:00:22]}  Ke6 {[%clk 0:00:02]} 47. Kh6 {[%clk 0:00:21]}  Rh4+ {[%clk 0:00:02]} 48. Kg7 {[%clk 0:00:22]}  Kf5 {[%clk 0:00:03]} 49. g6 {[%clk 0:00:22]}  Rg4 {[%clk 0:00:03]} 50. Rc5+ {[%clk 0:00:22]}  Ke6 {[%clk 0:00:02]} 51. Rc7 {[%clk 0:00:21]}  Kd6 {[%clk 0:00:02]} 52. Rd7+ {[%clk 0:00:20]}  Ke6 {[%clk 0:00:02]} 53. Rf7 {[%clk 0:00:18]}  Ke5 {[%clk 0:00:02]} 54. Bd3 {[%clk 0:00:17]}  Rxa4 {[%clk 0:00:01]} 55. Kg8 {[%clk 0:00:16]}  Rh4 {[%clk 0:00:02]} 56. g7 {[%clk 0:00:16]}  Rg4 {[%clk 0:00:02]} 57. Ra7 {[%clk 0:00:10]}  Ke6 {[%clk 0:00:02]} 58. Ra6+ {[%clk 0:00:11]}  Ke7 {[%clk 0:00:02]} 59. Kh7 {[%clk 0:00:10]}  Rh4+ {[%clk 0:00:02]} 60. Rh6 {[%clk 0:00:10]}  Rxh6+ {[%clk 0:00:02]} 61. Kxh6 {[%clk 0:00:11]}  Kf7 {[%clk 0:00:02]} 62. Kh7 {[%clk 0:00:12]}  Kf6 {[%clk 0:00:02]} 63. g8=Q {[%clk 0:00:13]}  Ke7 {[%clk 0:00:03]} 64. Qg7+ {[%clk 0:00:13]}  Kd6 {[%clk 0:00:03]} 65. Kg6 {[%clk 0:00:14]}  Kc6 {[%clk 0:00:03]} 66. Qf6+ {[%clk 0:00:14]}  Kb7 {[%clk 0:00:03]} 67. Kf5 {[%clk 0:00:15]}  Ka7 {[%clk 0:00:04]} 68. Ke5 {[%clk 0:00:16]}  Ka8 {[%clk 0:00:05]} 69. Qe7 {[%clk 0:00:16]}  Kb8 {[%clk 0:00:06]} 70. Kd6 {[%clk 0:00:16]}  Ka8 {[%clk 0:00:07]} 71. Kc6 {[%clk 0:00:17]}  Kb8 {[%clk 0:00:07]} 72. Qb7# {[%clk 0:00:17]} 1-0


[Site "https://www.chess.com"]

[Event "Titled Tuesday Blitz October 25 Late 2022"]
[White "Jobava, Baadur"]
[Black "Naroditsky, Daniel"]
[WhiteFideId "13601520"]
[BlackFideId "2026961"]
[WhiteElo "2582"]
[BlackElo "2628"]
[Result "0-1"]
[Round "07"]
[TimeControl "180+1"]
[Date "2022.10.26"]
[WhiteClock "0:00:02"]
[BlackClock "0:00:02"]

1. c4 {[%clk 0:03:00]}  e5 {[%clk 0:02:59]} 2. Nc3 {[%clk 0:03:00]}  Bb4 {[%clk 0:02:59]} 3. Nd5 {[%clk 0:03:00]}  Na6 {[%clk 0:02:59]} 4. Nxb4 {[%clk 0:02:58]}  Nxb4 {[%clk 0:03:00]} 5. d3 {[%clk 0:02:56]}  Nf6 {[%clk 0:03:00]} 6. Nf3 {[%clk 0:02:55]}  Qe7 {[%clk 0:02:48]} 7. a3 {[%clk 0:02:46]}  Nc6 {[%clk 0:02:49]} 8. e3 {[%clk 0:02:36]}  a5 {[%clk 0:02:46]} 9. b3 {[%clk 0:02:35]}  O-O {[%clk 0:02:45]} 10. Bb2 {[%clk 0:02:35]}  d5 {[%clk 0:02:32]} 11. cxd5 {[%clk 0:02:35]}  Nxd5 {[%clk 0:02:33]} 12. Rc1 {[%clk 0:02:27]}  f6 {[%clk 0:02:29]} 13. Be2 {[%clk 0:02:26]}  Be6 {[%clk 0:02:29]} 14. O-O {[%clk 0:02:25]}  Rfd8 {[%clk 0:02:20]} 15. Qc2 {[%clk 0:02:25]}  Qf7 {[%clk 0:02:17]} 16. Nd2 {[%clk 0:02:17]}  Nde7 {[%clk 0:02:14]} 17. Rfd1 {[%clk 0:02:08]}  Qg6 {[%clk 0:02:12]} 18. Ne4 {[%clk 0:01:58]}  Bd5 {[%clk 0:02:11]} 19. Bf1 {[%clk 0:01:56]}  Qf7 {[%clk 0:02:06]} 20. Nd2 {[%clk 0:01:56]}  Rd7 {[%clk 0:02:03]} 21. Bc3 {[%clk 0:01:55]}  Be6 {[%clk 0:01:56]} 22. b4 {[%clk 0:01:53]}  axb4 {[%clk 0:01:55]} 23. axb4 {[%clk 0:01:54]}  Nd5 {[%clk 0:01:49]} 24. Ra1 {[%clk 0:01:45]}  Rad8 {[%clk 0:01:44]} 25. Ne4 {[%clk 0:01:31]}  Ncxb4 {[%clk 0:01:29]} 26. Bxb4 {[%clk 0:01:31]}  Nxb4 {[%clk 0:01:29]} 27. Qb2 {[%clk 0:01:30]}  Qe7 {[%clk 0:01:25]} 28. h3 {[%clk 0:01:02]}  c5 {[%clk 0:01:19]} 29. Ra5 {[%clk 0:00:50]}  b6 {[%clk 0:01:05]} 30. Rb5 {[%clk 0:00:50]}  f5 {[%clk 0:00:34]} 31. Ng3 {[%clk 0:00:36]}  f4 {[%clk 0:00:29]} 32. exf4 {[%clk 0:00:25]}  exf4 {[%clk 0:00:30]} 33. Nh5 {[%clk 0:00:20]}  Qf7 {[%clk 0:00:25]} 34. Be2 {[%clk 0:00:11]}  f3 {[%clk 0:00:15]} 35. Bxf3 {[%clk 0:00:10]}  Nxd3 {[%clk 0:00:15]} 36. Qc3 {[%clk 0:00:08]}  Ne5 {[%clk 0:00:09]} 37. Qxe5 {[%clk 0:00:08]}  Rxd1+ {[%clk 0:00:09]} 38. Bxd1 {[%clk 0:00:09]}  Rxd1+ {[%clk 0:00:10]} 39. Kh2 {[%clk 0:00:09]}  Rd5 {[%clk 0:00:03]} 40. Qb8+ {[%clk 0:00:09]}  Qf8 {[%clk 0:00:03]} 41. Qxb6 {[%clk 0:00:08]}  Qd6+ {[%clk 0:00:02]} 42. Qxd6 {[%clk 0:00:08]}  Rxd6 {[%clk 0:00:03]} 43. Rxc5 {[%clk 0:00:08]}  Rd7 {[%clk 0:00:02]} 44. Nf4 {[%clk 0:00:08]}  Rd6 {[%clk 0:00:02]} 45. Rc7 {[%clk 0:00:07]}  Bd7 {[%clk 0:00:02]} 46. g4 {[%clk 0:00:06]}  Kf7 {[%clk 0:00:02]} 47. Kg3 {[%clk 0:00:07]}  g6 {[%clk 0:00:03]} 48. h4 {[%clk 0:00:06]}  Rd1 {[%clk 0:00:02]} 49. f3 {[%clk 0:00:06]}  Ke7 {[%clk 0:00:03]} 50. Ra7 {[%clk 0:00:06]}  Rg1+ {[%clk 0:00:03]} 51. Kf2 {[%clk 0:00:06]}  Rb1 {[%clk 0:00:03]} 52. Nd5+ {[%clk 0:00:05]}  Ke6 {[%clk 0:00:02]} 53. Nf4+ {[%clk 0:00:05]}  Kd6 {[%clk 0:00:03]} 54. Nh3 {[%clk 0:00:04]}  Rb2+ {[%clk 0:00:03]} 55. Kg3 {[%clk 0:00:04]}  Rb3 {[%clk 0:00:03]} 56. Ng5 {[%clk 0:00:05]}  h5 {[%clk 0:00:02]} 57. Nf7+ {[%clk 0:00:03]}  Ke6 {[%clk 0:00:02]} 58. Ng5+ {[%clk 0:00:04]}  Ke7 {[%clk 0:00:03]} 59. Ne4 {[%clk 0:00:03]}  Rb5 {[%clk 0:00:03]} 60. g5 {[%clk 0:00:02]}  Ke6 {[%clk 0:00:02]} 61. Ra6+ {[%clk 0:00:02]}  Ke7 {[%clk 0:00:01]} 62. Rxg6 {[%clk 0:00:03]}  Rb3 {[%clk 0:00:02]} 63. Rg7+ {[%clk 0:00:02]}  Ke8 {[%clk 0:00:02]} 64. Nf6+ {[%clk 0:00:02]}  Kf8 {[%clk 0:00:01]} 65. Rg8+ {[%clk 0:00:02]}  Kf7 {[%clk 0:00:02]} 0-1


[Site "https://www.chess.com"]

[Event "Titled Tuesday Blitz October 25 Late 2022"]
[White "Joubert, Dantelle"]
[Black "Romero Ruscalleda, Josep"]
[WhiteFideId "14310813"]
[BlackFideId "2231859"]
[WhiteElo "1507"]
[BlackElo "2324"]
[Result "0-1"]
[Round "07"]
[TimeControl "180+1"]
[Date "2022.10.26"]
[WhiteClock "0:00:03"]
[BlackClock "0:01:03"]

1. d4 {[%clk 0:02:50]}  g6 {[%clk 0:03:00]} 2. e4 {[%clk 0:02:43]}  Bg7 {[%clk 0:03:01]} 3. c4 {[%clk 0:02:39]}  d6 {[%clk 0:03:01]} 4. Nc3 {[%clk 0:02:39]}  e5 {[%clk 0:03:01]} 5. dxe5 {[%clk 0:02:37]}  dxe5 {[%clk 0:03:01]} 6. Qxd8+ {[%clk 0:02:36]}  Kxd8 {[%clk 0:03:02]} 7. Bg5+ {[%clk 0:02:28]}  f6 {[%clk 0:03:02]} 8. Be3 {[%clk 0:02:27]}  Bh6 {[%clk 0:03:01]} 9. Bxh6 {[%clk 0:02:10]}  Nxh6 {[%clk 0:03:01]} 10. O-O-O+ {[%clk 0:02:09]}  Bd7 {[%clk 0:02:58]} 11. Nd5 {[%clk 0:02:06]}  Rf8 {[%clk 0:02:56]} 12. h3 {[%clk 0:02:04]}  c6 {[%clk 0:02:54]} 13. Ne3 {[%clk 0:01:52]}  Ke7 {[%clk 0:02:52]} 14. c5 {[%clk 0:01:50]}  Be6 {[%clk 0:02:50]} 15. Kb1 {[%clk 0:01:40]}  Nd7 {[%clk 0:02:48]} 16. Rc1 {[%clk 0:01:38]}  a5 {[%clk 0:02:25]} 17. b3 {[%clk 0:01:30]}  a4 {[%clk 0:02:17]} 18. b4 {[%clk 0:01:29]}  a3 {[%clk 0:02:18]} 19. Rc3 {[%clk 0:01:25]}  Ra4 {[%clk 0:02:17]} 20. Nc2 {[%clk 0:01:24]}  f5 {[%clk 0:02:12]} 21. exf5 {[%clk 0:01:04]}  Bxf5 {[%clk 0:01:56]} 22. Rb3 {[%clk 0:00:52]}  Bxc2+ {[%clk 0:01:48]} 23. Kxc2 {[%clk 0:00:49]}  Rxf2+ {[%clk 0:01:49]} 24. Ne2 {[%clk 0:00:42]}  Nf5 {[%clk 0:01:46]} 25. Kd2 {[%clk 0:00:41]}  Nd4 {[%clk 0:01:42]} 26. Re3 {[%clk 0:00:39]}  Rxb4 {[%clk 0:01:36]} 27. Ke1 {[%clk 0:00:36]}  Rf5 {[%clk 0:01:33]} 28. Nxd4 {[%clk 0:00:34]}  Rxd4 {[%clk 0:01:33]} 29. Bd3 {[%clk 0:00:31]}  Rf6 {[%clk 0:01:23]} 30. Kd2 {[%clk 0:00:16]}  Nxc5 {[%clk 0:01:19]} 31. Rxe5+ {[%clk 0:00:14]}  Kd6 {[%clk 0:01:19]} 32. Re3 {[%clk 0:00:14]}  Rf2+ {[%clk 0:01:18]} 33. Kc3 {[%clk 0:00:14]}  Rxd3+ {[%clk 0:01:13]} 34. Rxd3+ {[%clk 0:00:14]}  Nxd3 {[%clk 0:01:14]} 35. Rd1 {[%clk 0:00:14]}  Rxa2 {[%clk 0:01:08]} 36. Rxd3+ {[%clk 0:00:14]}  Kc5 {[%clk 0:01:08]} 37. Kb3 {[%clk 0:00:11]}  Rxg2 {[%clk 0:01:07]} 38. Kxa3 {[%clk 0:00:10]}  b5 {[%clk 0:01:07]} 39. Re3 {[%clk 0:00:07]}  h5 {[%clk 0:01:06]} 40. Re5+ {[%clk 0:00:03]}  Kb6 {[%clk 0:01:06]} 41. Kb4 {[%clk 0:00:03]}  Rg3 {[%clk 0:01:03]} 0-1


[Site "https://www.chess.com"]

[Event "Titled Tuesday Blitz October 25 Late 2022"]
[White "Kabanova, Ekaterina"]
[Black "Lindholt, Malik"]
[WhiteFideId "24112917"]
[BlackFideId "1404490"]
[WhiteElo "2141"]
[BlackElo "2002"]
[Result "1/2-1/2"]
[Round "07"]
[TimeControl "180+1"]
[Date "2022.10.26"]
[WhiteClock "0:00:03"]
[BlackClock "0:00:18"]

1. c4 {[%clk 0:02:31]}  Nf6 {[%clk 0:02:55]} 2. Nf3 {[%clk 0:02:30]}  g6 {[%clk 0:02:55]} 3. d4 {[%clk 0:02:29]}  Bg7 {[%clk 0:02:55]} 4. Nc3 {[%clk 0:02:30]}  O-O {[%clk 0:02:55]} 5. e4 {[%clk 0:02:30]}  d6 {[%clk 0:02:56]} 6. h3 {[%clk 0:02:31]}  e5 {[%clk 0:02:56]} 7. d5 {[%clk 0:02:31]}  a5 {[%clk 0:02:54]} 8. g4 {[%clk 0:02:30]}  Na6 {[%clk 0:02:54]} 9. Bd3 {[%clk 0:02:31]}  c5 {[%clk 0:02:37]} 10. Bg5 {[%clk 0:02:27]}  h6 {[%clk 0:02:36]} 11. Be3 {[%clk 0:02:23]}  g5 {[%clk 0:02:32]} 12. Qd2 {[%clk 0:02:20]}  Nh7 {[%clk 0:02:31]} 13. Nb5 {[%clk 0:02:15]}  Nc7 {[%clk 0:02:22]} 14. Nc3 {[%clk 0:02:13]}  Bd7 {[%clk 0:02:18]} 15. a3 {[%clk 0:02:14]}  Rb8 {[%clk 0:02:14]} 16. Rb1 {[%clk 0:02:12]}  b5 {[%clk 0:02:07]} 17. cxb5 {[%clk 0:02:10]}  Nxb5 {[%clk 0:02:07]} 18. Bxb5 {[%clk 0:02:08]}  Bxb5 {[%clk 0:02:07]} 19. Nxb5 {[%clk 0:01:59]}  Rxb5 {[%clk 0:02:06]} 20. O-O {[%clk 0:01:45]}  Nf6 {[%clk 0:02:06]} 21. Kg2 {[%clk 0:01:40]}  Qb6 {[%clk 0:01:58]} 22. Qc2 {[%clk 0:01:34]}  Rb8 {[%clk 0:01:57]} 23. Nd2 {[%clk 0:01:34]}  Rxb2 {[%clk 0:01:56]} 24. Qa4 {[%clk 0:01:15]}  Qc7 {[%clk 0:01:39]} 25. Rxb2 {[%clk 0:01:12]}  Rxb2 {[%clk 0:01:39]} 26. Rb1 {[%clk 0:01:12]}  Rxb1 {[%clk 0:01:38]} 27. Nxb1 {[%clk 0:01:13]}  Bf8 {[%clk 0:01:32]} 28. Nd2 {[%clk 0:01:13]}  Be7 {[%clk 0:01:30]} 29. f3 {[%clk 0:01:12]}  Bd8 {[%clk 0:01:29]} 30. Nc4 {[%clk 0:01:13]}  Nd7 {[%clk 0:01:25]} 31. Bd2 {[%clk 0:01:09]}  Nb6 {[%clk 0:01:22]} 32. Qe8+ {[%clk 0:01:09]}  Kg7 {[%clk 0:01:21]} 33. Bxa5 {[%clk 0:01:01]}  Qa7 {[%clk 0:01:20]} 34. Nxd6 {[%clk 0:00:53]}  Nxd5 {[%clk 0:01:11]} 35. Bxd8 {[%clk 0:00:46]}  Nf4+ {[%clk 0:01:07]} 36. Kh2 {[%clk 0:00:44]}  c4 {[%clk 0:01:02]} 37. Qxe5+ {[%clk 0:00:42]}  f6 {[%clk 0:01:02]} 38. Qxf6+ {[%clk 0:00:40]}  Kh7 {[%clk 0:01:01]} 39. Qf5+ {[%clk 0:00:38]}  Kg8 {[%clk 0:00:58]} 40. Bb6 {[%clk 0:00:16]}  Qxb6 {[%clk 0:00:36]} 41. Qf7+ {[%clk 0:00:16]}  Kh8 {[%clk 0:00:35]} 42. Qf6+ {[%clk 0:00:13]}  Kh7 {[%clk 0:00:36]} 43. Qe7+ {[%clk 0:00:09]}  Kg8 {[%clk 0:00:30]} 44. Qe8+ {[%clk 0:00:06]}  Kh7 {[%clk 0:00:24]} 45. Qe7+ {[%clk 0:00:02]}  Kg8 {[%clk 0:00:23]} 46. Qe8+ {[%clk 0:00:02]}  Kg7 {[%clk 0:00:20]} 47. Qf7+ {[%clk 0:00:03]}  Kh8 {[%clk 0:00:19]} 48. Qf8+ {[%clk 0:00:03]}  Kh7 {[%clk 0:00:19]} 49. Qf5+ {[%clk 0:00:04]}  Kg8 {[%clk 0:00:18]} 50. Qf7+ {[%clk 0:00:03]}  Kh8 {[%clk 0:00:18]} 1/2-1/2


[Site "https://www.chess.com"]

[Event "Titled Tuesday Blitz October 25 Late 2022"]
[White "Karas, Marek"]
[Black "Kirillov, Dmitry"]
[WhiteFideId "14928558"]
[BlackFideId "34180572"]
[WhiteElo "2220"]
[BlackElo "2095"]
[Result "0-1"]
[Round "07"]
[TimeControl "180+1"]
[Date "2022.10.26"]
[WhiteClock "0:00:02"]
[BlackClock "0:00:52"]

1. a3 {[%clk 0:02:59]}  e5 {[%clk 0:02:55]} 2. h3 {[%clk 0:03:00]}  d5 {[%clk 0:02:54]} 3. b3 {[%clk 0:02:54]}  Nf6 {[%clk 0:02:51]} 4. g3 {[%clk 0:02:54]}  c5 {[%clk 0:02:43]} 5. Bb2 {[%clk 0:02:54]}  Nc6 {[%clk 0:02:42]} 6. Bg2 {[%clk 0:02:48]}  d4 {[%clk 0:02:43]} 7. e3 {[%clk 0:02:43]}  Be7 {[%clk 0:02:39]} 8. Ne2 {[%clk 0:02:35]}  O-O {[%clk 0:02:31]} 9. d3 {[%clk 0:02:30]}  Be6 {[%clk 0:02:23]} 10. O-O {[%clk 0:02:26]}  Qd7 {[%clk 0:02:20]} 11. Kh2 {[%clk 0:02:25]}  a5 {[%clk 0:02:12]} 12. Nd2 {[%clk 0:02:13]}  a4 {[%clk 0:02:03]} 13. bxa4 {[%clk 0:02:05]}  Rxa4 {[%clk 0:01:59]} 14. c3 {[%clk 0:01:42]}  Rfa8 {[%clk 0:01:54]} 15. cxd4 {[%clk 0:01:34]}  cxd4 {[%clk 0:01:53]} 16. exd4 {[%clk 0:01:31]}  Nxd4 {[%clk 0:01:48]} 17. Bxd4 {[%clk 0:01:16]}  exd4 {[%clk 0:01:46]} 18. Rb1 {[%clk 0:01:16]}  Bd5 {[%clk 0:01:39]} 19. Bxd5 {[%clk 0:01:04]}  Nxd5 {[%clk 0:01:38]} 20. Nc4 {[%clk 0:00:51]}  b5 {[%clk 0:01:33]} 21. Ne5 {[%clk 0:00:45]}  Qe6 {[%clk 0:01:32]} 22. f4 {[%clk 0:00:41]}  Ne3 {[%clk 0:01:31]} 23. Qc1 {[%clk 0:00:29]}  Nxf1+ {[%clk 0:01:25]} 24. Qxf1 {[%clk 0:00:30]}  f6 {[%clk 0:01:21]} 25. Nf3 {[%clk 0:00:21]}  Rxa3 {[%clk 0:01:13]} 26. Nexd4 {[%clk 0:00:18]}  Qa2+ {[%clk 0:01:05]} 27. Kh1 {[%clk 0:00:14]}  Qxb1 {[%clk 0:01:02]} 28. Qxb1 {[%clk 0:00:13]}  Ra1 {[%clk 0:01:02]} 29. Qxa1 {[%clk 0:00:11]}  Rxa1+ {[%clk 0:01:03]} 30. Kg2 {[%clk 0:00:12]}  b4 {[%clk 0:01:02]} 31. Kf2 {[%clk 0:00:11]}  Bc5 {[%clk 0:01:00]} 32. Ke2 {[%clk 0:00:11]}  Ra2+ {[%clk 0:00:57]} 33. Kd1 {[%clk 0:00:08]}  Rg2 {[%clk 0:00:52]} 34. Nf5 {[%clk 0:00:07]}  b3 {[%clk 0:00:51]} 35. Kc1 {[%clk 0:00:04]}  Ba3+ {[%clk 0:00:51]} 36. Kb1 {[%clk 0:00:03]}  Rf2 {[%clk 0:00:52]} 37. N5d4 {[%clk 0:00:02]}  Rf1+ {[%clk 0:00:52]} 0-1


[Site "https://www.chess.com"]